[Event "Norwegian Championship 2022"]
[Site "Kongsvinger, Norway"]
[Date "2022.07.13"]
[Round "6"]
[White "Sjøberg, Isak"]
[Black "Djurhuus, Rune"]
[Result "1-0"]
[Board "7"]
[TimeControl "40/5400+30:1800+30"]
[WhiteTitle "FM"]
[BlackTitle "GM"]
[WhiteFideId "1521640"]
[BlackFideId "1500082"]
[WhiteElo "2308"]
[BlackElo "2407"]

1. e4 {[%clk 01:30:57]} {[%emt 00:00:01]} c5 {[%clk 01:27:35]} {[%emt
00:03:26]} 2. Nf3 {[%clk 01:31:22]} {[%emt 00:00:05]} d6 {[%clk 01:28:01]}
{[%emt 00:00:05]} 3. d4 {[%clk 01:31:46]} {[%emt 00:00:06]} cxd4 {[%clk
01:28:28]} {[%emt 00:00:03]} 4. Nxd4 {[%clk 01:32:11]} {[%emt 00:00:04]} Nf6
{[%clk 01:28:49]} {[%emt 00:00:09]} 5. Nc3 {[%clk 01:32:36]} {[%emt 00:00:04]}
g6 {[%clk 01:29:04]} {[%emt 00:00:15]} 6. Be3 {[%clk 01:32:58]} {[%emt
00:00:08]} Bg7 {[%clk 01:29:30]} {[%emt 00:00:05]} 7. f3 {[%clk 01:33:23]}
{[%emt 00:00:05]} Nc6 {[%clk 01:29:56]} {[%emt 00:00:04]} 8. Qd2 {[%clk
01:33:45]} {[%emt 00:00:08]} Bd7 {[%clk 01:30:16]} {[%emt 00:00:10]} 9. O-O-O
{[%clk 01:26:42]} {[%emt 00:07:33]} h5 {[%clk 01:30:32]} {[%emt 00:00:14]} 10.
Be2 {[%clk 01:22:26]} {[%emt 00:04:46]} Rc8 {[%clk 01:30:49]} {[%emt 00:00:13]}
11. h3 {[%clk 01:20:53]} {[%emt 00:02:03]} Qa5 {[%clk 01:26:11]} {[%emt
00:05:08]} 12. Kb1 {[%clk 01:11:07]} {[%emt 00:10:17]} Ne5 {[%clk 01:18:05]}
{[%emt 00:08:36]} 13. Nb3 {[%clk 01:02:40]} {[%emt 00:08:57]} Qc7 {[%clk
01:17:14]} {[%emt 00:01:21]} 14. g4 {[%clk 01:01:31]} {[%emt 00:01:39]} Be6
{[%clk 01:04:08]} {[%emt 00:13:37]} 15. Bd4 {[%clk 00:49:34]} {[%emt 00:12:27]}
Nc6 {[%clk 00:57:32]} {[%emt 00:07:05]} 16. g5 {[%clk 00:40:37]} {[%emt
00:09:27]} Nxd4 {[%clk 00:43:00]} {[%emt 00:15:02]} 17. Qxd4 {[%clk 00:38:00]}
{[%emt 00:03:07]} O-O {[%clk 00:38:48]} {[%emt 00:04:43]} 18. gxf6 {[%clk
00:37:21]} {[%emt 00:01:09]} Bxf6 {[%clk 00:39:16]} {[%emt 00:00:01]} 19. Qd3
{[%clk 00:34:16]} {[%emt 00:03:34]} Qd7 {[%clk 00:38:39]} {[%emt 00:01:08]} 20.
Nd5 {[%clk 00:33:06]} {[%emt 00:01:39]} Bg7 {[%clk 00:38:22]} {[%emt 00:00:46]}
21. Qb5 {[%clk 00:31:10]} {[%emt 00:02:27]} Rc6 {[%clk 00:37:00]} {[%emt
00:01:52]} 22. c3 {[%clk 00:22:08]} {[%emt 00:09:31]} a6 {[%clk 00:30:51]}
{[%emt 00:06:39]} 23. Qd3 {[%clk 00:21:59]} {[%emt 00:00:39]} Rfc8 {[%clk
00:26:03]} {[%emt 00:05:19]} 24. Qe3 {[%clk 00:20:48]} {[%emt 00:01:40]} Qd8
{[%clk 00:23:48]} {[%emt 00:02:41]} 25. f4 {[%clk 00:19:25]} {[%emt 00:01:57]}
a5 {[%clk 00:22:26]} {[%emt 00:01:53]} 26. f5 {[%clk 00:18:51]} {[%emt
00:01:04]} Bxd5 {[%clk 00:20:35]} {[%emt 00:02:20]} 27. exd5 {[%clk 00:18:25]}
{[%emt 00:00:57]} Rb6 {[%clk 00:19:57]} {[%emt 00:01:08]} 28. fxg6 {[%clk
00:18:19]} {[%emt 00:00:36]} 1-0

[Event "Norwegian Championship 2022"]
[Site "Kongsvinger, Norway"]
[Date "2022.07.14"]
[Round "7"]
[White "Agdestein, Simen"]
[Black "Vestby-Ellingsen, Mads"]
[Result "1-0"]
[Board "1"]
[TimeControl "40/5400+30:1800+30"]
[WhiteTitle "GM"]
[BlackTitle "IM"]
[WhiteFideId "1500015"]
[BlackFideId "1520857"]
[WhiteElo "2559"]
[BlackElo "2351"]

1. d4 {[%clk 01:30:59]} {[%emt 00:00:01]} Nf6 {[%clk 01:30:46]} {[%emt
00:00:13]} 2. c4 {[%clk 01:31:23]} {[%emt 00:00:06]} e6 {[%clk 01:30:57]}
{[%emt 00:00:18]} 3. Nc3 {[%clk 01:31:50]} {[%emt 00:00:04]} Bb4 {[%clk
01:31:06]} {[%emt 00:00:20]} 4. e3 {[%clk 01:32:17]} {[%emt 00:00:03]} O-O
{[%clk 01:31:11]} {[%emt 00:00:25]} 5. Bd3 {[%clk 01:32:45]} {[%emt 00:00:03]}
c5 {[%clk 01:31:24]} {[%emt 00:00:16]} 6. Nf3 {[%clk 01:32:36]} {[%emt
00:00:39]} d5 {[%clk 01:31:30]} {[%emt 00:00:23]} 7. O-O {[%clk 01:32:28]}
{[%emt 00:00:39]} dxc4 {[%clk 01:31:44]} {[%emt 00:00:16]} 8. Bxc4 {[%clk
01:32:54]} {[%emt 00:00:04]} cxd4 {[%clk 01:31:55]} {[%emt 00:00:17]} 9. exd4
{[%clk 01:33:22]} {[%emt 00:00:04]} b6 {[%clk 01:32:08]} {[%emt 00:00:16]} 10.
Qa4 {[%clk 01:28:51]} {[%emt 00:05:01]} Be7 {[%clk 01:28:40]} {[%emt 00:03:57]}
11. Rd1 {[%clk 01:25:01]} {[%emt 00:04:20]} Bb7 {[%clk 01:25:34]} {[%emt
00:03:35]} 12. Ne5 {[%clk 01:25:23]} {[%emt 00:00:09]} Nd5 {[%clk 01:06:37]}
{[%emt 00:19:27]} 13. Qb3 {[%clk 01:21:45]} {[%emt 00:04:09]} Nxc3 {[%clk
00:57:15]} {[%emt 00:09:51]} 14. bxc3 {[%clk 01:20:58]} {[%emt 00:01:17]} Bd5
{[%clk 00:56:57]} {[%emt 00:00:48]} 15. Bxd5 {[%clk 01:20:26]} {[%emt
00:01:02]} exd5 {[%clk 00:55:28]} {[%emt 00:01:59]} 16. Bf4 {[%clk 01:04:46]}
{[%emt 00:16:11]} Bf6 {[%clk 00:31:06]} {[%emt 00:24:51]} 17. Rac1 {[%clk
01:03:22]} {[%emt 00:01:54]} Bxe5 {[%clk 00:22:54]} {[%emt 00:08:43]} 18. dxe5
{[%clk 01:02:55]} {[%emt 00:00:57]} Nc6 {[%clk 00:22:47]} {[%emt 00:00:36]} 19.
Rxd5 {[%clk 01:01:44]} {[%emt 00:01:41]} Qc8 {[%clk 00:20:33]} {[%emt
00:02:45]} 20. Rcd1 {[%clk 00:51:34]} {[%emt 00:10:40]} Na5 {[%clk 00:19:39]}
{[%emt 00:01:24]} 21. Qc2 {[%clk 00:46:32]} {[%emt 00:05:33]} Qg4 {[%clk
00:18:35]} {[%emt 00:01:33]} 22. Bc1 {[%clk 00:39:14]} {[%emt 00:07:48]} Rac8
{[%clk 00:16:52]} {[%emt 00:02:13]} 23. f4 {[%clk 00:36:33]} {[%emt 00:03:11]}
Rfe8 {[%clk 00:15:19]} {[%emt 00:02:03]} 24. h3 {[%clk 00:34:57]} {[%emt
00:02:06]} Qe6 {[%clk 00:14:05]} {[%emt 00:01:43]} 25. f5 {[%clk 00:33:57]}
{[%emt 00:01:31]} Qc6 {[%clk 00:14:26]} {[%emt 00:00:08]} 26. R1d3 {[%clk
00:31:33]} {[%emt 00:02:54]} Nc4 {[%clk 00:12:44]} {[%emt 00:02:13]} 27. Bf4
{[%clk 00:30:18]} {[%emt 00:01:45]} Na3 {[%clk 00:03:57]} {[%emt 00:09:17]} 28.
Qb3 {[%clk 00:21:07]} {[%emt 00:09:41]} Nc4 {[%clk 00:01:38]} {[%emt 00:02:49]}
29. Qc2 {[%clk 00:20:42]} {[%emt 00:00:54]} Na3 {[%clk 00:01:39]} {[%emt
00:00:30]} 30. Qb2 {[%clk 00:19:37]} {[%emt 00:01:35]} Nc4 {[%clk 00:00:59]}
{[%emt 00:01:10]} 31. Qf2 {[%clk 00:19:55]} {[%emt 00:00:11]} Qa4 {[%clk
00:00:32]} {[%emt 00:00:58]} 32. f6 {[%clk 00:18:03]} {[%emt 00:02:22]} Nb2
{[%clk 00:00:32]} {[%emt 00:00:31]} 33. R3d4 {[%clk 00:06:32]} {[%emt
00:12:01]} Qxa2 {[%clk 00:00:53]} {[%emt 00:00:08]} 34. Bc1 {[%clk 00:07:00]}
{[%emt 00:00:02]} Rxc3 {[%clk 00:00:31]} {[%emt 00:00:52]} 35. Bxb2 {[%clk
00:06:56]} {[%emt 00:00:34]} Rcc8 {[%clk 00:00:31]} {[%emt 00:00:30]} 36. Kh2
{[%clk 00:06:22]} {[%emt 00:01:03]} Qb1 {[%clk 00:00:34]} {[%emt 00:00:28]} 37.
Qg3 {[%clk 00:06:25]} {[%emt 00:00:27]} g6 {[%clk 00:00:41]} {[%emt 00:00:22]}
38. Qg5 {[%clk 00:06:18]} {[%emt 00:00:38]} 1-0

[Event "Norwegian Championship 2022"]
[Site "Kongsvinger, Norway"]
[Date "2022.07.14"]
[Round "7"]
[White "Kaasen, Tor Fredrik"]
[Black "Hauge, Lars Oskar"]
[Result "1-0"]
[Board "2"]
[TimeControl "40/5400+30:1800+30"]
[WhiteTitle "IM"]
[BlackTitle "GM"]
[WhiteFideId "1516647"]
[BlackFideId "1509276"]
[WhiteElo "2433"]
[BlackElo "2526"]

1. e4 {[%clk 01:30:54]} {[%emt 00:00:04]} e5 {[%clk 01:30:57]} {[%emt
00:00:05]} 2. Nf3 {[%clk 01:31:02]} {[%emt 00:00:21]} Nc6 {[%clk 01:31:00]}
{[%emt 00:00:28]} 3. Bc4 {[%clk 01:31:20]} {[%emt 00:00:11]} Nf6 {[%clk
01:31:16]} {[%emt 00:00:14]} 4. d3 {[%clk 01:31:38]} {[%emt 00:00:10]} Bc5
{[%clk 01:31:32]} {[%emt 00:00:17]} 5. O-O {[%clk 01:31:37]} {[%emt 00:00:28]}
d6 {[%clk 01:31:32]} {[%emt 00:00:33]} 6. c3 {[%clk 01:31:24]} {[%emt
00:00:42]} a5 {[%clk 01:31:17]} {[%emt 00:00:47]} 7. Re1 {[%clk 01:31:14]}
{[%emt 00:00:36]} Ba7 {[%clk 01:31:31]} {[%emt 00:00:19]} 8. Na3 {[%clk
01:28:02]} {[%emt 00:03:42]} O-O {[%clk 01:20:24]} {[%emt 00:11:37]} 9. Bg5
{[%clk 01:25:18]} {[%emt 00:03:13]} h6 {[%clk 01:05:28]} {[%emt 00:15:28]} 10.
Bh4 {[%clk 01:24:38]} {[%emt 00:01:09]} g5 {[%clk 00:55:37]} {[%emt 00:10:22]}
11. Bg3 {[%clk 01:21:57]} {[%emt 00:03:08]} Bg4 {[%clk 00:54:59]} {[%emt
00:01:10]} 12. Nc2 {[%clk 01:12:06]} {[%emt 00:10:20]} Bh5 {[%clk 00:46:31]}
{[%emt 00:08:58]} 13. Ne3 {[%clk 01:06:27]} {[%emt 00:06:09]} Bg6 {[%clk
00:43:06]} {[%emt 00:03:56]} 14. h3 {[%clk 01:02:59]} {[%emt 00:03:55]} Nh5
{[%clk 00:39:41]} {[%emt 00:03:57]} 15. Bh2 {[%clk 00:59:57]} {[%emt 00:03:31]}
Nf4 {[%clk 00:39:34]} {[%emt 00:00:38]} 16. Nd2 {[%clk 00:47:59]} {[%emt
00:12:28]} Kh8 {[%clk 00:39:26]} {[%emt 00:00:37]} 17. Ndf1 {[%clk 00:40:01]}
{[%emt 00:08:26]} f5 {[%clk 00:37:46]} {[%emt 00:02:12]} 18. exf5 {[%clk
00:35:58]} {[%emt 00:04:32]} Bxf5 {[%clk 00:37:37]} {[%emt 00:00:41]} 19. Nxf5
{[%clk 00:34:55]} {[%emt 00:01:32]} Rxf5 {[%clk 00:37:27]} {[%emt 00:00:40]} 20.
Ne3 {[%clk 00:35:04]} {[%emt 00:00:20]} Rf8 {[%clk 00:37:01]} {[%emt 00:00:57]}
21. Rf1 {[%clk 00:31:26]} {[%emt 00:04:08]} Qf6 {[%clk 00:34:15]} {[%emt
00:03:16]} 22. Kh1 {[%clk 00:29:31]} {[%emt 00:02:24]} Qg7 {[%clk 00:29:34]}
{[%emt 00:05:12]} 23. Qd2 {[%clk 00:25:55]} {[%emt 00:04:06]} Ne7 {[%clk
00:29:21]} {[%emt 00:00:43]} 24. Rae1 {[%clk 00:19:02]} {[%emt 00:07:23]} Rad8
{[%clk 00:29:02]} {[%emt 00:00:49]} 25. Bb3 {[%clk 00:19:03]} {[%emt 00:00:29]}
Neg6 {[%clk 00:29:05]} {[%emt 00:00:27]} 26. g3 {[%clk 00:17:50]} {[%emt
00:01:42]} Nh5 {[%clk 00:21:55]} {[%emt 00:07:41]} 27. Qd1 {[%clk 00:16:38]}
{[%emt 00:01:41]} Nf6 {[%clk 00:22:14]} {[%emt 00:00:12]} 28. d4 {[%clk
00:15:16]} {[%emt 00:01:52]} Rde8 {[%clk 00:20:06]} {[%emt 00:02:38]} 29. Bc2
{[%clk 00:14:49]} {[%emt 00:00:56]} e4 {[%clk 00:17:53]} {[%emt 00:02:45]} 30.
f3 {[%clk 00:13:44]} {[%emt 00:01:33]} d5 {[%clk 00:18:11]} {[%emt 00:00:14]}
31. fxe4 {[%clk 00:12:43]} {[%emt 00:01:31]} dxe4 {[%clk 00:18:17]} {[%emt
00:00:23]} 32. Ng4 {[%clk 00:11:45]} {[%emt 00:01:28]} c5 {[%clk 00:17:17]}
{[%emt 00:01:32]} 33. Nxf6 {[%clk 00:08:42]} {[%emt 00:03:32]} Rxf6 {[%clk
00:17:42]} {[%emt 00:00:05]} 34. Rxf6 {[%clk 00:08:59]} {[%emt 00:00:14]} Qxf6
{[%clk 00:18:07]} {[%emt 00:00:04]} 35. Rxe4 {[%clk 00:08:57]} {[%emt
00:00:31]} Rxe4 {[%clk 00:09:52]} {[%emt 00:08:46]} 36. Bxe4 {[%clk 00:09:20]}
{[%emt 00:00:05]} cxd4 {[%clk 00:09:39]} {[%emt 00:00:45]} 37. Bg1 {[%clk
00:08:56]} {[%emt 00:00:53]} Ne5 {[%clk 00:09:26]} {[%emt 00:00:43]} 38. cxd4
{[%clk 00:07:19]} {[%emt 00:02:07]} Nc4 {[%clk 00:09:12]} {[%emt 00:00:44]} 39.
Bxb7 {[%clk 00:04:47]} {[%emt 00:03:02]} Qe6 {[%clk 00:07:51]} {[%emt
00:01:51]} 40. Bg2 {[%clk 00:33:28]} {[%emt 00:01:49]} Ne3 {[%clk 00:37:56]}
{[%emt 00:00:25]} 41. d5 {[%clk 00:27:31]} {[%emt 00:06:28]} Qf5 {[%clk
00:37:29]} {[%emt 00:00:57]} 42. Qf3 {[%clk 00:22:01]} {[%emt 00:06:00]} 1-0

[Event "Norwegian Championship 2022"]
[Site "Kongsvinger, Norway"]
[Date "2022.07.14"]
[Round "7"]
[White "Østmoe, Geir Sune Tallaksen"]
[Black "Hammer, Jon Ludvig"]
[Result "0-1"]
[Board "3"]
[TimeControl "40/5400+30:1800+30"]
[WhiteTitle "IM"]
[BlackTitle "GM"]
[WhiteFideId "1502778"]
[BlackFideId "1503707"]
[WhiteElo "2483"]
[BlackElo "2638"]

1. d4 {[%clk 01:30:52]} {[%emt 00:00:07]} Nf6 {[%clk 01:30:54]} {[%emt
00:00:06]} 2. Nf3 {[%clk 01:31:09]} {[%emt 00:00:13]} d5 {[%clk 01:31:16]}
{[%emt 00:00:08]} 3. c4 {[%clk 01:31:30]} {[%emt 00:00:09]} e6 {[%clk
01:31:40]} {[%emt 00:00:06]} 4. g3 {[%clk 01:31:51]} {[%emt 00:00:09]} Bb4+
{[%clk 01:32:03]} {[%emt 00:00:06]} 5. Nc3 {[%clk 01:31:34]} {[%emt 00:00:48]}
O-O {[%clk 01:29:39]} {[%emt 00:02:54]} 6. Bg2 {[%clk 01:31:52]} {[%emt
00:00:12]} dxc4 {[%clk 01:30:01]} {[%emt 00:00:08]} 7. O-O {[%clk 01:32:17]}
{[%emt 00:00:05]} Nc6 {[%clk 01:30:24]} {[%emt 00:00:08]} 8. Qa4 {[%clk
01:31:44]} {[%emt 00:01:04]} Nd5 {[%clk 01:30:46]} {[%emt 00:00:07]} 9. Qc2
{[%clk 01:32:06]} {[%emt 00:00:08]} Be7 {[%clk 01:31:09]} {[%emt 00:00:06]} 10.
Rd1 {[%clk 01:31:59]} {[%emt 00:00:37]} Ncb4 {[%clk 01:31:31]} {[%emt
00:00:08]} 11. Qd2 {[%clk 01:27:07]} {[%emt 00:05:22]} Nb6 {[%clk 01:30:37]}
{[%emt 00:01:24]} 12. a3 {[%clk 01:19:57]} {[%emt 00:07:40]} N4d5 {[%clk
01:31:03]} {[%emt 00:00:02]} 13. e4 {[%clk 01:19:43]} {[%emt 00:00:45]} Nxc3
{[%clk 01:31:26]} {[%emt 00:00:08]} 14. Qxc3 {[%clk 01:19:04]} {[%emt
00:01:09]} Bd7 {[%clk 01:31:32]} {[%emt 00:00:23]} 15. Be3 {[%clk 00:55:12]}
{[%emt 00:24:23]} Ba4 {[%clk 01:15:09]} {[%emt 00:16:52]} 16. Rd2 {[%clk
00:54:29]} {[%emt 00:01:13]} Bb3 {[%clk 01:13:45]} {[%emt 00:01:54]} 17. d5
{[%clk 00:47:29]} {[%emt 00:07:31]} exd5 {[%clk 01:08:47]} {[%emt 00:05:27]} 18.
Bxb6 {[%clk 00:47:34]} {[%emt 00:00:25]} axb6 {[%clk 01:08:18]} {[%emt
00:00:59]} 19. Rxd5 {[%clk 00:47:05]} {[%emt 00:00:58]} Qc8 {[%clk 01:07:51]}
{[%emt 00:00:57]} 20. Nd4 {[%clk 00:43:14]} {[%emt 00:04:21]} c6 {[%clk
01:03:26]} {[%emt 00:04:55]} 21. Rh5 {[%clk 00:29:11]} {[%emt 00:14:33]} g6
{[%clk 00:53:24]} {[%emt 00:10:33]} 22. Bh3 {[%clk 00:26:43]} {[%emt 00:02:58]}
Qd8 {[%clk 00:51:44]} {[%emt 00:02:10]} 23. Ne6 {[%clk 00:18:15]} {[%emt
00:08:58]} Bf6 {[%clk 00:51:19]} {[%emt 00:00:54]} 24. e5 {[%clk 00:18:12]}
{[%emt 00:00:33]} fxe6 {[%clk 00:48:25]} {[%emt 00:03:24]} 25. Bxe6+ {[%clk
00:16:32]} {[%emt 00:02:10]} Kg7 {[%clk 00:47:50]} {[%emt 00:01:04]} 26. exf6+
{[%clk 00:12:42]} {[%emt 00:04:21]} Qxf6 {[%clk 00:48:16]} {[%emt 00:00:03]} 27.
Rh4 {[%clk 00:12:47]} {[%emt 00:00:25]} Qxc3 {[%clk 00:45:39]} {[%emt
00:03:08]} 28. bxc3 {[%clk 00:13:14]} {[%emt 00:00:03]} b5 {[%clk 00:45:57]}
{[%emt 00:00:11]} 29. Re4 {[%clk 00:09:51]} {[%emt 00:03:53]} Rfe8 {[%clk
00:43:54]} {[%emt 00:02:32]} 30. f4 {[%clk 00:08:40]} {[%emt 00:01:42]} Kf6
{[%clk 00:33:55]} {[%emt 00:10:28]} 31. Rae1 {[%clk 00:08:38]} {[%emt
00:00:32]} Bc2 {[%clk 00:32:51]} {[%emt 00:01:33]} 32. Re5 {[%clk 00:07:53]}
{[%emt 00:01:16]} Bf5 {[%clk 00:32:46]} {[%emt 00:00:34]} 33. Bxc4 {[%clk
00:06:30]} {[%emt 00:01:54]} Rxe5 {[%clk 00:31:37]} {[%emt 00:01:39]} 34. fxe5+
{[%clk 00:06:56]} {[%emt 00:00:03]} Ke7 {[%clk 00:31:56]} {[%emt 00:00:10]} 35.
Be2 {[%clk 00:04:14]} {[%emt 00:03:13]} Rxa3 {[%clk 00:32:12]} {[%emt
00:00:14]} 36. g4 {[%clk 00:04:36]} {[%emt 00:00:07]} Be6 {[%clk 00:30:34]}
{[%emt 00:02:08]} 37. Rc1 {[%clk 00:04:49]} {[%emt 00:00:17]} Bd5 {[%clk
00:30:45]} {[%emt 00:00:18]} 38. Kf2 {[%clk 00:04:03]} {[%emt 00:01:17]} Ke6
{[%clk 00:30:58]} {[%emt 00:00:17]} 39. Ke3 {[%clk 00:03:29]} {[%emt 00:01:05]}
b4 {[%clk 00:27:47]} {[%emt 00:03:40]} 40. Kd4 {[%clk 00:33:50]} {[%emt
00:00:09]} c5+ {[%emt 00:02:57]} 0-1

[Event "Norwegian Championship 2022"]
[Site "Kongsvinger, Norway"]
[Date "2022.07.14"]
[Round "7"]
[White "Elsness, Frode"]
[Black "Urkedal, Frode Olav Olsen"]
[Result "1/2-1/2"]
[Board "4"]
[TimeControl "40/5400+30:1800+30"]
[WhiteTitle "IM"]
[BlackTitle "GM"]
[WhiteFideId "1501100"]
[BlackFideId "1506102"]
[WhiteElo "2464"]
[BlackElo "2555"]

1. e4 {[%clk 01:30:56]} {[%emt 00:00:02]} e5 {[%clk 01:30:51]} {[%emt
00:00:10]} 2. Nf3 {[%clk 01:31:20]} {[%emt 00:00:07]} Nc6 {[%clk 01:31:15]}
{[%emt 00:00:06]} 3. Bc4 {[%clk 01:31:32]} {[%emt 00:00:18]} Nf6 {[%clk
01:31:34]} {[%emt 00:00:10]} 4. Ng5 {[%clk 01:31:43]} {[%emt 00:00:18]} d5
{[%clk 01:31:53]} {[%emt 00:00:12]} 5. exd5 {[%clk 01:32:07]} {[%emt 00:00:06]}
Na5 {[%clk 01:32:20]} {[%emt 00:00:03]} 6. Bb5+ {[%clk 01:32:32]} {[%emt
00:00:05]} c6 {[%clk 01:32:44]} {[%emt 00:00:06]} 7. dxc6 {[%clk 01:32:57]}
{[%emt 00:00:05]} bxc6 {[%clk 01:33:11]} {[%emt 00:00:04]} 8. Bd3 {[%clk
01:32:51]} {[%emt 00:00:35]} Nd5 {[%clk 01:33:35]} {[%emt 00:00:06]} 9. Nf3
{[%clk 01:33:04]} {[%emt 00:00:18]} Bd6 {[%clk 01:33:48]} {[%emt 00:00:18]} 10.
O-O {[%clk 01:32:46]} {[%emt 00:00:47]} O-O {[%clk 01:33:51]} {[%emt 00:00:27]}
11. Re1 {[%clk 01:32:00]} {[%emt 00:01:15]} f5 {[%clk 01:34:16]} {[%emt
00:00:06]} 12. Nxe5 {[%clk 01:30:47]} {[%emt 00:01:42]} Qf6 {[%clk 01:34:20]}
{[%emt 00:00:26]} 13. Nf3 {[%clk 01:30:16]} {[%emt 00:01:01]} g5 {[%clk
01:34:44]} {[%emt 00:00:06]} 14. c4 {[%clk 01:28:21]} {[%emt 00:02:25]} Nf4
{[%clk 01:34:34]} {[%emt 00:00:40]} 15. Bf1 {[%clk 01:28:41]} {[%emt 00:00:09]}
g4 {[%clk 01:35:02]} {[%emt 00:00:03]} 16. d4 {[%clk 01:28:16]} {[%emt
00:00:55]} gxf3 {[%clk 01:35:29]} {[%emt 00:00:04]} 17. Qxf3 {[%clk 01:28:37]}
{[%emt 00:00:08]} Ne6 {[%clk 01:35:55]} {[%emt 00:00:04]} 18. Qc3 {[%clk
01:27:28]} {[%emt 00:01:39]} c5 {[%clk 01:31:36]} {[%emt 00:04:50]} 19. Qxa5
{[%clk 01:21:36]} {[%emt 00:06:21]} Nxd4 {[%clk 01:31:34]} {[%emt 00:00:32]} 20.
Nc3 {[%clk 01:03:03]} {[%emt 00:19:03]} Qg6 {[%clk 01:01:59]} {[%emt 00:30:06]}
21. Kh1 {[%clk 00:50:54]} {[%emt 00:12:39]} Qh5 {[%clk 00:54:46]} {[%emt
00:07:43]} 22. f4 {[%clk 00:40:20]} {[%emt 00:11:04]} Bb7 {[%clk 00:53:30]}
{[%emt 00:01:45]} 23. Nd5 {[%clk 00:39:50]} {[%emt 00:01:00]} Nc2 {[%clk
00:49:46]} {[%emt 00:04:14]} 24. Be3 {[%clk 00:25:03]} {[%emt 00:15:16]} Bxd5
{[%clk 00:43:24]} {[%emt 00:06:53]} 25. cxd5 {[%clk 00:25:26]} {[%emt
00:00:07]} Rae8 {[%clk 00:38:29]} {[%emt 00:05:24]} 26. Qc3 {[%clk 00:18:53]}
{[%emt 00:07:03]} Nxa1 {[%clk 00:37:14]} {[%emt 00:01:45]} 27. Rxa1 {[%clk
00:19:15]} {[%emt 00:00:09]} Re4 {[%clk 00:32:26]} {[%emt 00:05:18]} 28. Bxc5
{[%clk 00:14:08]} {[%emt 00:05:38]} Bxf4 {[%clk 00:30:08]} {[%emt 00:02:48]} 29.
Qh3 {[%clk 00:12:05]} {[%emt 00:02:32]} Qxh3 {[%clk 00:29:50]} {[%emt
00:00:49]} 30. gxh3 {[%clk 00:12:34]} {[%emt 00:00:01]} Rfe8 {[%clk 00:24:04]}
{[%emt 00:06:16]} 31. d6 {[%clk 00:10:45]} {[%emt 00:02:20]} Be3 {[%clk
00:19:08]} {[%emt 00:05:25]} 32. b4 {[%clk 00:09:51]} {[%emt 00:01:24]} Kf7
{[%clk 00:19:04]} {[%emt 00:00:34]} 33. Bb5 {[%clk 00:04:25]} {[%emt 00:05:56]}
Rd8 {[%clk 00:18:27]} {[%emt 00:01:07]} 34. Rd1 {[%clk 00:04:04]} {[%emt
00:00:50]} Re5 {[%clk 00:18:01]} {[%emt 00:00:56]} 35. Bc4+ {[%clk 00:02:48]}
{[%emt 00:01:46]} Kf6 {[%clk 00:17:54]} {[%emt 00:00:36]} 36. Bd5 {[%clk
00:03:13]} {[%emt 00:00:05]} f4 {[%clk 00:14:00]} {[%emt 00:04:24]} 37. Kg2
{[%clk 00:01:46]} {[%emt 00:01:58]} Bxc5 {[%clk 00:12:28]} {[%emt 00:02:02]} 38.
bxc5 {[%clk 00:02:15]} {[%emt 00:00:01]} Re2+ {[%clk 00:12:52]} {[%emt
00:00:06]} 39. Kf3 {[%clk 00:02:44]} Rc2 {[%clk 00:13:13]} {[%emt 00:00:09]} 40.
Kxf4 {[%clk 00:30:59]} {[%emt 00:02:14]} Rxc5 {[%clk 00:43:36]} {[%emt
00:00:07]} 41. Bb3 {[%clk 00:27:18]} {[%emt 00:04:11]} Rd7 {[%clk 00:35:01]}
{[%emt 00:09:06]} 42. Ke4 {[%clk 00:26:55]} {[%emt 00:00:53]} Re5+ {[%clk
00:33:08]} {[%emt 00:02:23]} 43. Kf4 {[%clk 00:24:50]} {[%emt 00:02:35]} Rb5
{[%clk 00:27:21]} {[%emt 00:06:18]} 44. Ke4 {[%clk 00:24:40]} {[%emt 00:00:40]}
Rb6 {[%clk 00:26:56]} {[%emt 00:00:55]} 45. Rf1+ {[%clk 00:25:04]} {[%emt
00:00:06]} Kg6 {[%clk 00:26:30]} {[%emt 00:00:56]} 46. Ke5 {[%clk 00:24:26]}
{[%emt 00:01:08]} Rdxd6 {[%clk 00:25:50]} {[%emt 00:01:10]} 47. Rf7 {[%clk
00:23:52]} {[%emt 00:01:03]} a6 {[%clk 00:24:05]} {[%emt 00:02:17]} 48. Rc7
{[%clk 00:22:38]} {[%emt 00:01:43]} h6 {[%clk 00:18:04]} {[%emt 00:06:31]} 49.
Bf7+ {[%clk 00:20:15]} {[%emt 00:02:53]} Kg7 {[%clk 00:15:35]} {[%emt
00:02:59]} 50. Bd5+ {[%clk 00:15:17]} {[%emt 00:05:27]} Kf8 {[%clk 00:15:52]}
{[%emt 00:00:14]} 51. a4 {[%clk 00:14:29]} {[%emt 00:01:17]} Rg6 {[%clk
00:15:24]} {[%emt 00:00:58]} 52. h4 {[%clk 00:13:45]} {[%emt 00:01:15]} Rg1
{[%clk 00:15:32]} {[%emt 00:00:22]} 53. Bc6 {[%clk 00:12:11]} {[%emt 00:02:04]}
Rc1 {[%clk 00:14:28]} {[%emt 00:01:34]} 54. Kd6 {[%clk 00:12:31]} {[%emt
00:00:09]} a5 {[%clk 00:14:46]} {[%emt 00:00:12]} 55. h5 {[%clk 00:12:02]}
{[%emt 00:00:59]} Rb2 {[%clk 00:09:17]} {[%emt 00:05:59]} 56. Ra7 {[%clk
00:09:18]} {[%emt 00:03:12]} Rb6 {[%clk 00:07:12]} {[%emt 00:02:38]} 57. Rc7
{[%clk 00:09:34]} {[%emt 00:00:14]} Rc2 {[%clk 00:06:36]} {[%emt 00:01:06]} 58.
h3 {[%clk 00:09:35]} {[%emt 00:00:29]} Rc3 {[%clk 00:05:49]} {[%emt 00:01:18]}
59. Kd5 {[%clk 00:07:48]} {[%emt 00:02:16]} Rc1 {[%clk 00:05:07]} {[%emt
00:01:13]} 60. Kd6 {[%clk 00:08:06]} {[%emt 00:00:11]} Rc4 {[%clk 00:01:06]}
{[%emt 00:04:31]} 61. Kd5 {[%clk 00:07:53]} {[%emt 00:00:43]} Rh4 {[%clk
00:01:04]} {[%emt 00:00:33]} 62. Ke6 {[%clk 00:05:44]} {[%emt 00:02:38]} Rc4
{[%clk 00:01:08]} {[%emt 00:00:27]} 1/2-1/2